bitfinex/quotes_ETHUSD_20251018
["timestamp","ask_amount","ask_price","bid_price","bid_amount"]
[1760793302345,0.02564314,3882.2,3882.1,0.002]
[1760793302640,0.49984314,3882.2,3882.1,0.002]
[1760793302842,0.02564314,3882.2,3882.1,0.002]
[1760793305935,0.46254314,3882.2,3882.1,0.002]
[1760793306140,0.02564314,3882.2,3882.1,0.002]
[1760793306853,4.71685714,3882.2,3882.1,0.002]
[1760793311148,4.691214,3882.2,3882.1,0.4401]
[1760793312539,4.691214,3882.2,3882.1,0.002]
[1760793314240,4.691214,3882.2,3882.1,0.4401]
[1760793317864,4.691214,3882.2,3882.1,0.002]
[1760793319063,4.692214,3882.2,3882.1,0.002]
[1760793324482,5.6744185,3882.2,3882.1,0.002]
[1760793328299,7.4024185,3882.2,3882.1,0.002]
[1760793333632,24.1147265,3882.2,3882.1,0.002]
[1760793333975,24.21805857,3882.2,3882.1,0.002]
[1760793334397,19.42417057,3882.2,3882.1,0.002]
[1760793334713,23.20443557,3882.2,3882.1,0.002]
[1760793335574,31.64085157,3882.2,3882.1,0.002]
[1760793335990,31.10440457,3882.2,3882.1,0.002]
[1760793336604,33.71218457,3882.2,3882.1,0.002]
[1760793336770,30.08405957,3882.2,3882.1,0.002]
[1760793337514,36.80790168,3882.2,3882.1,0.002]
[1760793337811,44.86319268,3882.2,3882.1,0.002]
[1760793338108,45.26735984,3882.2,3882.1,0.002]
[1760793338278,45.54031938,3882.2,3882.1,0.002]
[1760793338469,2.57612447,3881.8,3881.7,0.002]
[1760793338675,39.11135068,3881.8,3881.7,0.002]
[1760793338905,39.55940754,3881.8,3881.7,0.002]
[1760793339075,39.70769746,3881.8,3881.7,0.002]
[1760793339278,40.11191777,3881.8,3881.7,0.002]
[1760793339479,40.68599518,3881.8,3881.7,0.002]
[1760793340086,40.95895472,3881.8,3881.7,0.002]
[1760793345778,34.93798996,3881.4,3881.3,0.002]
[1760793345980,39.08597303,3881.4,3881.3,0.002]
[1760793346190,39.55967303,3881.4,3881.3,0.002]
[1760793346392,43.31163153,3881.4,3881.3,0.002]
[1760793346802,13.31163153,3881.4,3881.3,0.002]
[1760793347014,43.31163153,3881.4,3881.3,0.002]
[1760793347714,34.79479153,3881.4,3881.3,0.002]
[1760793347892,36.44697553,3881.4,3881.3,0.002]
[1760793348496,41.13818953,3881.4,3881.3,0.002]
[1760793348894,48.00284553,3881.4,3881.3,0.002]
[1760793351618,47.60237053,3881.4,3881.3,0.002]
[1760793352009,46.46663253,3881.4,3881.3,0.002]
[1760793352516,46.00053353,3881.4,3881.3,0.002]
[1760793352814,45.35334353,3881.4,3881.3,0.002]
[1760793353015,44.45303153,3881.4,3881.3,0.002]
[1760793353222,0.6336,3880.8,3880.4,0.407]
[1760793353385,1.728,3880.4,3880.1,0.1173]
[1760793353811,2.39249823,3880.4,3880.1,0.1173]
[1760793354010,0.02564314,3880.3,3880.1,0.1173]
[1760793354209,1.728,3880.2,3880.1,0.1173]
[1760793354820,4.596773,3880.2,3880.1,0.1173]
[1760793355336,4.596773,3880.2,3880.1,0.5723]
[1760793356842,4.596773,3880.2,3880.1,0.1173]
[1760793356843,8.74475607,3880.2,3880.1,0.1173]
[1760793357252,9.64525418,3880.2,3880.1,0.1173]
[1760793357422,7.18076864,3880.2,3879.8,0.2153]
[1760793357632,0.02564314,3880.1,3879.8,0.6703]
[1760793358650,7.63776864,3880.2,3879.9,0.455]
[1760793358834,13.89750464,3880.2,3880.1,0.0693]
[1760793359015,13.89750464,3880.2,3880.1,0.5243]
[1760793359352,13.62816164,3880.2,3880.1,0.5243]
[1760793359554,9.48017857,3880.2,3880.1,0.5243]
[1760793360017,9.04215757,3880.2,3880.1,0.5243]
[1760793360212,8.58515757,3880.2,3880.1,0.5243]
[1760793360412,2.13228746,3880.2,3880.1,0.5243]
[1760793360625,2.13228746,3880.2,3880.1,0.0693]
[1760793360817,2.1579306,3880.2,3880.1,0.5243]
[1760793361153,2.1579306,3880.2,3880.1,0.0693]
[1760793361614,2.1579306,3880.2,3880.1,0.5243]
[1760793362236,2.1579306,3880.2,3880.1,0.0693]
[1760793362850,1.75364314,3880.2,3880.1,0.0693]
[1760793363016,6.44485714,3880.2,3880.1,0.0693]
[1760793363216,6.419214,3880.2,3880.1,0.0693]
[1760793363418,6.419214,3880.2,3880.1,0.5243]
[1760793368269,6.419214,3880.2,3880.1,0.0693]
[1760793368569,6.419214,3880.2,3880.1,0.5295]
[1760793370448,6.419214,3880.2,3880.1,0.0693]
[1760793370991,6.419214,3880.2,3880.1,0.0713]
[1760793372354,6.419214,3880.2,3880.1,0.5315]
[1760793374046,6.419214,3880.2,3880.1,0.68014]
[1760793374682,6.419214,3880.2,3880.1,1.41974]
[1760793375382,4.691214,3880.2,3880.1,1.41974]
[1760793375746,4.820014,3880.2,3880.1,1.41974]
[1760793376794,4.691214,3880.2,3880.1,3.99699316]
[1760793378501,0.02564314,3881.1,3880.6,2.57687181]
[1760793378684,0.1288,3881.1,3880.7,0.71788718]
[1760793378897,0.1288,3881.1,3881.0,2.5766555]
[1760793379074,0.1288,3881.3,3881.0,0.4602]
[1760793379264,0.04491267,3881.1,3880.8,0.7749545]
[1760793379600,0.04491267,3881.1,3880.9,0.4602]
[1760793380101,0.04491267,3881.1,3881.0,0.4602]
[1760793381504,0.04491267,3881.1,3881.0,3.0368555]
[1760793381803,0.02784236,3881.1,3881.0,3.0368555]
[1760793383982,0.02784236,3881.1,3881.0,0.4602]
[1760793384181,0.02784236,3881.1,3881.0,3.24100465]
[1760793385416,0.02784236,3881.1,3881.0,0.20414915]
[1760793385629,0.15664236,3881.1,3880.8,0.7749545]
[1760793385789,0.15664236,3881.1,3880.8,3.35173009]
[1760793385988,0.15664236,3881.1,3880.8,3.81193009]
[1760793386926,0.15664236,3881.1,3880.8,3.03697559]
[1760793387125,0.15664236,3881.1,3880.9,2.57671456]
[1760793387293,0.15664236,3881.1,3881.0,0.30369146]
[1760793388917,0.15664236,3881.1,3880.5,0.90379454]
[1760793389221,0.61654236,3881.1,3880.5,0.1288]
[1760793389383,0.48554314,3881.0,3880.5,0.1288]
[1760793389717,0.1288,3880.9,3880.3,3.35214315]
[1760793390081,0.1288,3880.9,3880.4,2.57703359]
[1760793390286,0.1288,3880.9,3880.5,3.18277841]
[1760793390586,0.1288,3880.9,3880.6,0.002]
[1760793390788,0.5887,3880.9,3880.6,0.002]
[1760793391913,0.1288,3880.9,3880.6,0.002]
[1760793392416,0.1288,3880.9,3880.6,2.57891568]
[1760793392620,0.1288,3880.9,3880.6,0.002]
[1760793392832,0.17371057,3880.9,3880.6,0.002]
[1760793392989,0.17371057,3880.9,3880.6,0.36651127]
[1760793393187,0.17371057,3880.9,3880.6,0.82671127]
[1760793393393,0.17371057,3880.9,3880.6,0.36651127]
[1760793394504,0.1288,3880.9,3880.6,0.36651127]
[1760793395489,0.1288,3880.9,3880.6,2.94342603]
[1760793397026,0.59624314,3880.9,3880.6,0.002]
[1760793397221,0.4418,3880.8,3880.6,0.002]
[1760793397720,0.1993545,3880.9,3880.6,0.002]
[1760793398103,0.4418,3880.8,3880.6,0.002]
[1760793399501,0.46744314,3880.7,3880.6,0.002]
[1760793400220,1.16059999,3880.7,3880.6,0.002]
[1760793401522,7.57981399,3880.7,3880.6,0.002]
[1760793401723,7.55417085,3880.7,3880.6,0.002]
[1760793404128,7.11237085,3880.7,3880.6,0.002]
[1760793404335,6.419214,3880.7,3880.6,0.002]
[1760793404505,6.419214,3880.7,3880.6,3.02982109]
[1760793405047,6.419214,3880.7,3880.6,2.57892109]
[1760793405205,4.691214,3880.7,3880.6,2.57892109]
[1760793405540,4.691214,3880.7,3880.6,3.02982109]
[1760793406546,4.691214,3880.7,3880.6,0.002]
[1760793407756,4.73612632,3880.7,3880.6,0.002]
[1760793409550,4.73612632,3880.7,3880.6,2.57892109]
[1760793409919,4.73612632,3880.7,3880.6,3.02982109]
[1760793410626,4.73612632,3880.7,3880.6,3.59050696]
[1760793410868,0.04491232,3880.7,3880.6,3.71930696]
[1760793411668,0.04491232,3880.7,3880.6,3.84810696]
[1760793412569,0.04491232,3880.7,3880.6,3.39720696]
[1760793413262,0.04491232,3880.7,3880.6,3.84810696]
[1760793418982,0.001,3881.1,3881.0,2.5766555]
[1760793420270,0.001,3881.1,3881.0,3.09199645]
[1760793421747,0.001,3881.1,3881.0,3.54289645]
[1760793423188,0.001,3881.1,3881.0,0.51534095]
[1760793423387,0.4428,3881.1,3880.7,0.4418]
[1760793423697,0.001,3881.1,3880.7,0.4418]
[1760793423848,0.4418,3881.0,3880.7,0.4418]
[1760793424182,0.4514,3880.9,3880.7,2.57683964]
[1760793424346,0.001,3881.1,3881.0,2.5766555]
[1760793424747,0.4524,3881.1,3880.9,2.57669809]
[1760793425705,0.4524,3881.1,3880.8,2.57672309]
[1760793426204,0.4524,3881.1,3880.7,2.5768383]
[1760793426500,0.4524,3881.1,3880.8,0.31590383]
[1760793426885,0.4524,3881.1,3880.9,2.57672189]
[1760793427604,0.001,3881.1,3880.6,0.5822]
[1760793427769,0.436,3881.0,3880.6,0.5822]
[1760793428112,0.001,3881.1,3880.7,2.5768011]
[1760793428274,0.436,3880.9,3880.6,0.5822]
[1760793428602,0.436,3880.9,3880.7,2.57685469]
[1760793429269,0.04490788,3881.0,3880.6,0.002]
[1760793429469,0.436,3880.9,3880.6,0.002]
[1760793429891,0.1288,3880.7,3880.6,0.002]
[1760793430303,0.59044314,3880.7,3880.6,0.002]
[1760793431308,5.28165714,3880.7,3880.6,0.002]
[1760793431605,7.5166705,3880.7,3880.6,0.002]
[1760793434112,0.298,3880.5,3880.2,0.002]
[1760793434319,0.02564314,3880.4,3880.2,0.002]
[1760793434523,0.46164314,3880.4,3880.2,0.002]
[1760793435889,0.436,3880.3,3880.2,0.002]
[1760793436185,0.68476431,3880.3,3880.2,0.002]
[1760793438295,0.72968641,3880.3,3880.2,0.002]
[1760793440594,11.99787141,3880.3,3880.2,0.002]
[1760793440930,12.17213141,3880.3,3880.2,0.002]
[1760793442141,19.43235541,3880.3,3880.2,0.002]
[1760793442899,11.48790041,3880.3,3880.2,0.002]
[1760793443319,10.09890041,3880.3,3880.2,0.002]
[1760793444072,12.60973641,3880.3,3880.2,0.002]
[1760793444277,7.14890041,3880.3,3880.2,0.002]
[1760793444571,9.16015041,3880.3,3880.2,0.002]
[1760793444773,6.71290041,3880.3,3880.2,0.002]
[1760793444927,6.4641361,3880.3,3880.2,0.002]
[1760793445576,6.419214,3880.3,3880.2,0.4466]
[1760793446877,6.419214,3880.3,3880.2,0.002]
[1760793447529,6.855214,3880.3,3880.2,0.002]
[1760793447955,6.90013472,3880.3,3880.2,0.002]
[1760793448162,6.46413472,3880.3,3880.2,0.002]
[1760793450180,6.46413472,3880.3,3880.2,0.0713]
[1760793450484,0.04492072,3880.3,3880.2,3.09308674]
[1760793450642,0.298,3880.5,3880.4,2.57705391]
[1760793451265,0.298,3880.5,3880.2,1.08313555]
[1760793451428,0.298,3880.5,3880.3,0.4446]
[1760793451834,0.298,3880.5,3880.2,0.002]
[1760793452043,0.436,3880.4,3880.2,0.002]
[1760793452444,0.436,3880.3,3880.2,0.002]
[1760793453361,0.34291505,3880.5,3880.2,0.002]
[1760793453737,0.02564314,3880.4,3880.2,0.002]
[1760793454336,0.34291505,3880.5,3880.2,0.002]
[1760793454534,0.34291505,3880.5,3880.3,0.4329]
[1760793455137,0.34291505,3880.5,3880.4,0.4329]
[1760793455344,0.298,3880.5,3880.4,0.4329]
[1760793455536,0.298,3880.5,3880.2,0.002]
[1760793456268,0.298,3880.5,3880.3,3.01002009]
[1760793456570,0.298,3880.5,3880.4,0.4329]
[1760793457083,0.298,3880.5,3880.3,0.30833201]
[1760793457262,0.298,3880.5,3880.2,0.002]
[1760793457566,0.7274,3880.5,3880.2,0.002]
[1760793457740,0.298,3880.5,3880.2,0.002]
[1760793458361,0.77231601,3880.5,3880.2,0.002]
[1760793459087,0.45504314,3880.4,3880.2,0.002]
[1760793459581,0.02564314,3880.4,3880.2,0.002]
[1760793459754,0.4294,3880.3,3880.2,0.002]
[1760793460489,0.34291601,3880.5,3880.2,0.002]
[1760793461696,0.02564314,3880.4,3880.2,0.002]
[1760793463271,0.4294,3880.3,3880.2,0.002]
[1760793464488,0.45504314,3880.3,3880.2,0.002]
[1760793464699,0.02564314,3880.3,3880.2,0.002]
[1760793464872,0.45504314,3880.3,3880.2,0.002]
[1760793465053,0.4294,3880.3,3880.2,0.002]
[1760793465396,0.45504314,3880.3,3880.2,0.002]
[1760793467474,0.49996451,3880.3,3880.2,0.002]
[1760793469798,5.19117851,3880.3,3880.2,0.002]
[1760793470100,5.16553537,3880.3,3880.2,0.002]
[1760793470673,4.73613537,3880.3,3880.2,0.002]
[1760793473194,5.28515322,3880.3,3880.2,0.002]
[1760793474502,4.73613537,3880.3,3880.2,0.002]
[1760793475467,4.73613537,3880.3,3880.2,0.0713]
[1760793475800,4.73613537,3880.3,3880.2,0.002]
[1760793476899,6.89353537,3880.3,3880.2,0.002]
[1760793477963,23.31229537,3880.3,3880.2,0.002]
[1760793478275,15.77049954,3880.3,3880.2,0.002]
[1760793478897,9.20974354,3880.3,3880.2,0.002]
[1760793479075,26.282837,3880.3,3880.2,0.002]
[1760793479465,25.852821,3880.3,3880.2,0.002]
[1760793479864,19.2810627,3880.3,3880.2,0.002]
[1760793480168,25.3314067,3880.3,3880.2,0.002]
[1760793480370,33.732419,3880.2,3880.1,0.002]
[1760793480667,29.60840807,3880.2,3880.1,0.002]
[1760793480874,30.03780807,3880.2,3880.1,0.002]
[1760793481069,40.63688478,3880.2,3880.1,0.002]
[1760793481470,43.21407152,3880.2,3880.1,0.002]
[1760793484702,28.50094878,3880.2,3880.1,0.002]
[1760793484908,16.45755824,3880.2,3880.1,0.002]
[1760793485125,15.58718771,3880.2,3880.1,0.002]
[1760793485269,15.65722924,3880.2,3880.1,0.002]
[1760793485875,15.61229753,3880.2,3880.1,0.002]
[1760793486175,26.00771453,3880.2,3880.1,0.002]
[1760793486883,26.41204696,3880.2,3880.1,0.002]
[1760793487118,10.56202596,3880.2,3880.1,0.002]
[1760793487319,5.318814,3879.9,3879.8,0.002]
[1760793487488,29.10763741,3879.9,3879.8,0.002]
[1760793487671,7.62089141,3879.9,3879.8,0.002]
[1760793488108,6.98729141,3879.9,3879.8,0.002]
[1760793488415,6.413214,3879.9,3879.8,0.4556]
[1760793488778,6.4581424,3879.9,3879.8,0.4556]
[1760793489229,6.4581424,3879.9,3879.8,0.002]
[1760793490331,6.4581424,3879.9,3879.8,0.4556]
[1760793491551,6.4581424,3879.9,3879.8,0.002]
[1760793491847,7.61468988,3879.9,3879.8,0.002]
[1760793492005,19.75709288,3879.9,3879.8,0.002]
[1760793492604,20.39069288,3879.9,3879.8,0.002]
[1760793492802,28.36310388,3879.9,3879.8,0.002]
[1760793493007,28.71356342,3879.9,3879.8,0.002]
[1760793493948,36.62123202,3879.9,3879.8,0.002]
[1760793494250,22.49602802,3879.9,3879.8,0.002]
[1760793494808,8.78462102,3879.9,3879.8,0.002]
[1760793495011,36.86671002,3879.9,3879.8,0.002]
[1760793495539,35.70126002,3879.9,3879.8,0.002]
[1760793495737,38.27864603,3879.9,3879.8,0.002]
[1760793495906,38.27864603,3879.9,3879.4,0.002]
[1760793495907,35.312814,3879.5,3879.4,0.002]
[1760793496106,39.56112346,3879.5,3879.4,0.002]
[1760793496306,33.04594946,3879.5,3879.4,0.002]
[1760793496905,30.50278946,3879.5,3879.4,0.002]
[1760793497615,30.853249,3879.5,3879.4,0.002]
[1760793498027,36.054479,3879.5,3879.4,0.002]
[1760793498954,32.617712,3879.5,3879.4,0.002]
[1760793499151,35.031345,3879.5,3879.4,0.002]
[1760793499339,33.857651,3879.5,3879.4,0.002]
[1760793500254,39.33398434,3879.5,3879.4,0.002]
[1760793500911,39.78339484,3879.5,3879.4,0.002]
[1760793501209,43.73608284,3879.5,3879.4,0.002]
[1760793502418,41.29466784,3879.5,3879.4,0.002]
[1760793502626,40.36233084,3879.5,3879.4,0.002]
[1760793502843,37.01302684,3879.5,3879.4,0.002]
[1760793503215,13.73608284,3879.5,3879.4,0.002]
[1760793503430,43.73608284,3879.5,3879.4,0.002]
[1760793504152,43.40894525,3879.5,3879.4,0.002]
[1760793504354,43.36399838,3879.5,3879.4,0.002]
[1760793504756,43.40894354,3879.5,3879.4,0.002]
[1760793504931,43.36399838,3879.5,3879.4,0.002]
[1760793505265,2.3616,3878.5,3878.1,0.4536]
[1760793505558,2.3616,3878.5,3877.0,0.0693]
[1760793505559,7.159577,3878.0,3877.8,0.4536]
[1760793505726,6.491564,3878.0,3877.1,0.10343173]
[1760793505926,5.339433,3878.0,3877.9,0.6267]
[1760793506147,10.012647,3878.0,3877.9,0.6267]
[1760793506345,10.012647,3878.0,3877.9,0.1731]
[1760793506545,10.012647,3878.0,3877.9,0.6267]
[1760793506941,10.05759589,3878.0,3877.9,0.1731]
[1760793507140,10.46210059,3878.0,3877.9,0.1731]
[1760793507349,10.46210059,3878.0,3877.9,0.1281511]
[1760793508850,6.85066759,3878.0,3877.9,0.5817511]
[1760793509056,9.22263859,3878.0,3877.9,0.5817511]
[1760793511052,9.22263859,3878.0,3877.9,0.1281511]
[1760793511658,9.22263859,3878.0,3877.6,0.4536]
[1760793511840,0.1288,3877.6,3877.0,0.0693]
[1760793512040,0.1288,3877.1,3877.0,2.99106817]
[1760793512359,0.1288,3877.1,3877.0,3.44466817]
[1760793512562,0.17374817,3877.1,3877.0,3.44466817]
[1760793515134,0.17374817,3877.1,3877.0,0.86535427]
[1760793515770,0.17374817,3877.1,3877.0,3.44466817]
[1760793515975,0.17374817,3877.1,3877.0,0.86535427]
[1760793516357,0.17374817,3877.1,3877.0,0.0693]
[1760793516550,0.17374817,3877.1,3877.0,0.5374]
[1760793516871,0.17374817,3877.1,3877.0,3.1167139]
[1760793517346,0.17374817,3877.1,3877.0,0.5374]
[1760793517552,0.17374817,3877.1,3877.0,3.1167139]
[1760793518066,0.17374817,3877.1,3877.0,3.76390562]
[1760793519787,0.17374817,3877.1,3877.0,1.18459172]
[1760793519985,0.17374817,3877.1,3877.0,0.5374]
[1760793520655,0.17374817,3877.1,3877.0,0.0693]
[1760793520967,0.17374817,3877.1,3877.0,3.1167139]
[1760793521490,0.17374817,3877.1,3877.0,3.89250808]
[1760793522754,0.17374817,3877.1,3877.0,1.31319418]
[1760793523767,0.17374817,3877.1,3877.0,3.89250808]
[1760793524486,0.17374817,3877.1,3877.0,0.0693]
[1760793526900,0.17374817,3877.1,3876.8,0.4681]
[1760793527203,0.04494817,3877.1,3876.8,0.77581826]
[1760793527365,0.1288,3876.8,3876.2,3.04790287]
[1760793527569,0.1288,3876.8,3876.5,0.77589049]
[1760793527570,0.1288,3876.6,3876.5,0.77589049]
[1760793528009,0.1288,3876.6,3876.2,0.4681]
[1760793528170,0.1288,3876.6,3876.3,0.4681]
[1760793528490,0.48624314,3876.8,3876.3,0.77591658]
[1760793528705,0.48624314,3876.8,3876.0,0.1134]
[1760793528706,0.1288,3876.3,3876.0,0.1134]
[1760793528888,0.1288,3876.3,3876.1,0.77591658]
[1760793529272,0.1288,3876.3,3876.1,1.24401658]
[1760793529798,0.1288,3876.3,3876.2,3.04794624]
[1760793531568,0.04495762,3876.5,3876.4,2.57971313]
[1760793532109,0.04495762,3876.5,3876.4,3.04781313]
[1760793532669,0.04495762,3876.5,3876.4,2.57971313]
[1760793532894,0.04495762,3876.5,3876.2,0.65372189]
[1760793533104,0.17375762,3876.5,3876.4,2.57971313]
[1760793533706,0.17375762,3876.5,3876.3,2.57976068]
[1760793533892,0.17375762,3876.5,3876.4,3.04781313]
[1760793534094,0.04495762,3876.5,3876.4,3.04781313]
[1760793535616,0.04495762,3876.5,3876.4,2.57971313]
[1760793536004,0.04495762,3876.5,3876.4,3.04781313]
[1760793536211,0.04495762,3876.5,3876.4,3.6544389]
[1760793538098,0.04495762,3876.5,3876.4,4.43030732]
[1760793538501,0.1288,3877.0,3876.9,2.57938043]
[1760793539199,0.1288,3877.0,3876.9,3.35517662]
[1760793540128,0.1288,3877.0,3876.9,3.94864658]
[1760793540296,0.1288,3877.0,3876.9,4.41674658]
[1760793540689,0.1288,3877.0,3876.9,3.94864658]
[1760793541215,0.5894,3877.0,3876.9,0.77579619]
[1760793541530,0.63435384,3877.0,3876.2,0.002]
[1760793541689,0.1288,3876.8,3876.5,0.77579619]
[1760793542228,0.5894,3876.8,3876.5,0.77579619]
[1760793542592,0.1288,3876.8,3876.5,0.77579619]
[1760793542797,0.4606,3876.7,3876.2,0.002]
[1760793543009,0.1288,3876.5,3876.2,0.002]
[1760793543204,0.1288,3876.5,3876.3,0.50555384]
[1760793543391,0.6343586,3876.5,3876.3,0.50555384]
[1760793543618,0.5894,3876.5,3876.3,0.50555384]
[1760793544326,0.4732,3876.4,3876.2,0.002]
[1760793544526,0.1288,3876.3,3876.2,0.002]
[1760793545529,0.5799,3876.3,3876.2,0.002]
[1760793547702,0.62486191,3876.3,3876.2,0.002]
[1760793547902,0.17376191,3876.3,3876.2,0.002]
[1760793548272,0.62486191,3876.3,3876.2,0.002]
[1760793548408,10.86480529,3876.3,3876.2,0.002]
[1760793548727,16.34096082,3876.3,3876.2,0.002]
[1760793548909,13.88839782,3876.3,3876.2,0.002]
[1760793549526,16.71707282,3876.3,3876.2,0.002]
[1760793549728,13.43547482,3876.3,3876.2,0.002]
[1760793549947,12.16653482,3876.3,3876.2,0.002]
[1760793550266,12.03773482,3876.3,3876.2,0.002]
[1760793550406,12.41769436,3876.3,3876.2,0.002]
[1760793550608,28.46610582,3876.3,3876.2,0.002]
[1760793550814,21.87811382,3876.3,3876.2,0.002]
[1760793551525,27.41560382,3876.3,3876.2,0.002]
[1760793552712,30.95499882,3876.3,3876.2,0.002]
[1760793553317,35.81784942,3876.3,3876.2,0.002]
[1760793553535,35.51673548,3876.3,3876.2,0.002]
[1760793553738,38.23196057,3876.3,3876.2,0.002]
[1760793554047,38.56808678,3876.3,3876.2,0.002]
[1760793554750,27.76870765,3876.3,3876.2,0.002]
[1760793555730,37.87248965,3876.3,3876.2,0.002]
[1760793556453,38.56808678,3876.3,3876.2,0.002]
[1760793556650,8.97289372,3876.3,3876.2,0.002]
[1760793556950,39.01787361,3876.3,3876.2,0.002]
[1760793557962,37.68867648,3876.3,3876.2,0.002]
[1760793558320,41.07189048,3876.3,3876.2,0.002]
[1760793558920,11.4603548,3876.3,3876.2,0.002]
[1760793559229,13.53592536,3876.3,3876.2,0.002]
[1760793559433,14.16952536,3876.3,3876.2,0.002]
[1760793559635,16.11570504,3876.3,3876.2,0.002]
[1760793559830,31.12614536,3876.3,3876.2,0.002]
[1760793560037,34.33952504,3876.3,3876.2,0.002]
[1760793560231,31.75974536,3876.3,3876.2,0.002]
[1760793560624,18.58254636,3876.3,3876.2,0.002]
[1760793560825,26.52537436,3876.3,3876.2,0.002]
[1760793561026,25.13525636,3876.3,3876.2,0.002]
[1760793561221,27.71503604,3876.3,3876.2,0.002]
[1760793561960,41.60196104,3876.3,3876.2,0.002]
[1760793563049,41.1971541,3876.3,3876.2,0.002]
[1760793563561,38.61737442,3876.3,3876.2,0.002]
[1760793564131,41.1971541,3876.3,3875.8,0.002]
[1760793564342,1.728,3875.4,3875.1,0.1717]
[1760793564579,0.02564314,3875.3,3875.2,0.4611]
[1760793565076,0.07061861,3875.3,3875.2,0.4611]
[1760793565452,0.04497547,3875.3,3875.2,0.4611]
[1760793568175,0.04497547,3875.3,3875.2,3.04161197]
[1760793568176,0.17377547,3875.3,3875.2,3.04161197]
[1760793568346,0.17377547,3875.3,3875.2,1.04049654]
[1760793568675,0.17377547,3875.3,3875.2,3.62100851]
[1760793568881,0.1288,3875.3,3875.2,3.62100851]
[1760793569243,0.1288,3875.3,3875.2,1.04049654]
[1760793569586,0.1288,3875.3,3875.2,3.62100851]
[1760793570849,6.395214,3876.0,3875.2,1.06630165]
[1760793571169,0.0449669,3875.9,3875.4,2.58037879]
[1760793571371,0.0449669,3875.9,3875.7,2.58016631]
[1760793571746,0.0449669,3875.9,3875.8,0.4611]
[1760793572190,0.0449669,3875.9,3875.4,0.4611]
[1760793572346,0.0449669,3875.9,3875.8,0.4611]
[1760793572550,0.0449669,3875.9,3875.5,0.4611]
[1760793572788,0.0449669,3875.9,3875.6,0.4611]
[1760793573086,0.0449669,3875.9,3875.7,0.4611]
[1760793573283,0.02564314,3875.8,3875.3,0.4611]
[1760793573491,0.0449669,3875.9,3875.1,0.1717]
[1760793573785,0.02564314,3875.8,3875.1,0.1717]
[1760793576064,1.728,3875.6,3875.1,0.1717]
[1760793576264,0.02564314,3875.5,3875.1,0.602]
[1760793576772,0.07061449,3875.5,3875.1,0.602]
[1760793577273,0.07061449,3875.5,3875.1,0.1717]
[1760793577853,0.76212734,3875.5,3874.7,1.0303]
[1760793578048,0.71715599,3875.5,3874.7,1.0303]
[1760793578262,0.04497375,3875.4,3874.7,1.0303]
[1760793578450,1.728,3875.2,3874.7,0.6]
[1760793578670,1.728,3875.0,3874.7,0.6]
[1760793578871,4.69285714,3874.9,3874.7,0.6]
[1760793580898,4.73783409,3874.9,3874.7,0.6]
[1760793581698,4.71219095,3874.9,3874.7,0.6]
[1760793581869,0.66544909,3874.8,3874.7,0.6]
[1760793582797,2.39344909,3874.8,3874.7,0.6]
[1760793584103,7.06066309,3874.8,3874.7,0.6]
[1760793584679,7.50996309,3874.8,3874.7,0.6]
[1760793585366,7.06066309,3874.8,3874.7,0.6]
[1760793586309,7.50996309,3874.8,3874.7,0.6]
[1760793586824,7.06066309,3874.8,3874.7,0.6]
[1760793587378,6.395214,3874.8,3874.7,0.6]
[1760793587578,6.395214,3874.8,3874.7,1.0303]
[1760793589792,6.44019088,3874.8,3874.7,1.0303]
[1760793591626,6.44019088,3874.8,3874.7,0.6]
[1760793592646,6.44019088,3874.8,3874.7,1.0303]
[1760793592844,4.84099088,3874.8,3874.7,3.61114496]
[1760793593140,4.84099088,3874.8,3874.7,1.0303]
[1760793594033,4.84099088,3874.8,3874.7,0.6]
[1760793599632,5.29029088,3874.8,3874.7,0.6]
[1760793599954,4.84099088,3874.8,3874.7,0.6]
[1760793600138,5.29029088,3874.8,3874.7,0.6]
[1760793600317,5.77438997,3874.8,3874.7,0.6]
[1760793600526,7.50238997,3874.8,3874.7,0.6]
[1760793601153,7.45741309,3874.8,3874.7,0.6]
[1760793602121,12.42124709,3874.8,3874.7,0.6]
[1760793603030,13.05484709,3874.8,3874.7,0.6]
[1760793603231,21.74035509,3874.8,3874.7,0.6]
[1760793603960,16.62964109,3874.8,3874.7,0.6]
[1760793604143,17.86609009,3874.8,3874.7,0.6]
[1760793604455,16.17490509,3874.8,3874.7,0.6]
[1760793604840,7.48021309,3874.8,3874.7,0.6]
[1760793605148,15.40143409,3874.8,3874.7,0.6]
[1760793605356,14.70212209,3874.8,3874.7,0.6]
[1760793606239,6.87931309,3874.8,3874.7,0.6]
[1760793606421,6.87931309,3874.8,3874.7,1.0735]
[1760793606422,6.395214,3874.8,3874.7,1.0735]
[1760793606620,6.395214,3874.8,3874.7,0.6]
[1760793607060,6.395214,3874.8,3874.7,1.0735]
[1760793607265,6.395214,3874.8,3874.7,0.6]
[1760793607827,0.4559,3876.1,3874.7,1.0735]
[1760793608026,3.152778,3876.0,3874.8,3.08006983]
[1760793608253,0.02564314,3875.9,3875.0,2.58059466]
[1760793608444,0.02664314,3876.2,3875.1,0.6452]
[1760793608943,0.02664314,3876.2,3875.2,0.4735]
[1760793609145,0.001,3876.2,3875.2,0.4735]
[1760793609385,0.001,3876.2,3875.3,2.58042464]
[1760793609559,0.04496944,3876.0,3875.3,2.70092464]
[1760793609727,0.04496944,3876.0,3875.4,3.05387295]
[1760793610060,0.04496944,3876.0,3875.3,0.1205]
[1760793610471,0.07061258,3876.0,3875.4,0.4735]
[1760793610631,0.04496944,3876.0,3875.4,0.4735]
[1760793611027,0.04496944,3876.0,3875.3,0.1205]
[1760793611759,0.71164314,3875.9,3875.1,0.1717]
[1760793612432,0.71164314,3875.9,3874.7,0.6]